[Event "Amsterdam Chess Open 2024"]
[Site "Amsterdam"]
[Date "2024.11.01"]
[Round "2.14"]
[White "Spinhoven, John"]
[Black "Van der Meiden, Dirk"]
[Result "0-1"]
[ECO "C55"]
[WhiteElo "1902"]
[BlackElo "1968"]
[Annotator "RC"]
[PlyCount "44"]
[EventDate "2024.10.31"]
[EventType "swiss"]
[EventCountry "NED"]
[SourceTitle "playchess.com"]
[Source "ChessBase"]
[SourceQuality "1"]
[TimeControl "5400+30"]

1. e4 {[%emt 0:00:03]} Nf6 {[%emt 0:00:08]} 2. Nc3 {[%emt 0:03:07]} e5 {[%emt 0:00:10]} 3. Nf3 {[%emt 0:00:34]} Nc6 {[%emt 0:00:05]} 4. Bc4 {[%emt 0:01:04]} Nxe4 {[%emt 0:01:37]} 5. Bxf7+ {[%emt 0:00:45]} Kxf7 {[%emt 0:00:09]} 6. Nxe4 {[%emt 0:00:03]} d5 {[%emt 0:00:34]} 7. Neg5+ {[%emt 0:02:39]} Kg8 {[%emt 0:01:47]} 8. d3 {[%emt 0:00:23]} h6 {[%emt 0:03:19]} 9. Nh3 {[%emt 0:00:22]} Qf6 {[%emt 0:02:27]} 10. Nhg1 {[%emt 0:01:38]} Bf5 {[%emt 0:06:29]} 11. g3 {[%emt 0:08:21]} Bc5 {[%emt 0:03:44]} 12. h3 {[%emt 0:03:25]} e4 {[%emt 0:02:45]} 13. dxe4 {[%emt 0:02:50]} Bxe4 {[%emt 0:00:41]} 14. Rh2 {[%emt 0:00:30]} Rf8 {[%emt 0:01:23]} 15. Bf4 {[%emt 0:01:20]} g5 {[%emt 0:00:33]} 16. Nd2 {[%emt 0:00:32]} gxf4 {[%emt 0:02:36]} 17. Nxe4 {[%emt 0:00:18]} Qe5 {[%emt 0:00:45]} 18. Qg4+ {[%emt 0:00:12]} Kh7 {[%emt 0:01:14]} 19. O-O-O {[%emt 0:01:29]} Rhg8 {[%emt 0:01:30]} 20. Qd7+ {[%emt 0:00:20]} Rg7 {[%emt 0:01:03]} 21. Qxd5 {[%emt 0:00:09]} Qxd5 {[%emt 0:00:39]} 22. Rxd5 {[%emt 0:00:05]} fxg3 {[%emt 0:00:44]} 0-1

[Event "Amsterdam Chess Open 2024"]
[Site "Amsterdam"]
[Date "2024.11.01"]
[Round "2.15"]
[White "Woudt, Ismael"]
[Black "Aziz, Daniel"]
[Result "0-1"]
[ECO "E04"]
[WhiteElo "1968"]
[BlackElo "1882"]
[Annotator "RC"]
[PlyCount "60"]
[EventDate "2024.10.31"]
[EventType "swiss"]
[EventCountry "NED"]
[SourceTitle "playchess.com"]
[Source "ChessBase"]
[SourceQuality "1"]
[TimeControl "5400+30"]

1. d4 {[%emt 0:00:04]} d5 {[%emt 0:00:07]} 2. c4 {[%emt 0:00:04]} e6 {[%emt 0:00:05]} 3. Nf3 {[%emt 0:00:04]} Nf6 {[%emt 0:00:08]} 4. g3 {[%emt 0:00:05]} dxc4 {[%emt 0:00:36]} 5. Bg2 {[%emt 0:00:17]} Bb4+ {[%emt 0:00:07]} 6. Bd2 {[%emt 0:02:11]} a5 {[%emt 0:00:30]} 7. O-O {[%emt 0:00:40]} O-O {[%emt 0:00:36]} 8. Qc2 {[%emt 0:07:20]} b5 {[%emt 0:02:14]} 9. a4 {[%emt 0:02:54]} Bxd2 {[%emt 0:00:58]} 10. Nbxd2 {[%emt 0:00:14]} c6 {[%emt 0:00:13]} 11. b3 {[%emt 0:03:09]} cxb3 {[%emt 0:01:38]} 12. Nxb3 {[%emt 0:00:35]} Nd5 {[%emt 0:04:09]} 13. Ne5 {[%emt 0:01:48]} Ba6 {[%emt 0:10:18]} 14. Nc5 {[%emt 0:12:55]} Nb4 {[%emt 0:06:37]} 15. Qb2 {[%emt 0:04:52]} bxa4 {[%emt 0:00:40]} 16. Nxa6 {[%emt 0:01:18]} Rxa6 {[%emt 0:00:25]} 17. Rxa4 {[%emt 0:00:44]} Nd7 {[%emt 0:02:12]} 18. Nc4 {[%emt 0:03:30]} Nb6 {[%emt 0:01:28]} 19. Nxb6 {[%emt 0:00:06]} Qxb6 {[%emt 0:00:04]} 20. Rc1 {[%emt 0:00:24]} Rb8 {[%emt 0:13:41]} 21. Rc5 {[%emt 0:02:06]} Qd8 {[%emt 0:09:17]} 22. Qa1 {[%emt 0:02:50]} g6 {[%emt 0:01:51]} 23. e3 {[%emt 0:04:23]} Rab6 {[%emt 0:03:21]} 24. Bf1 {[%emt 0:00:49]} Qf6 {[%emt 0:01:31]} 25. Raxa5 {[%emt 0:01:32]} Kg7 {[%emt 0:00:37]} 26. Ra8 {[%emt 0:01:10]} Rxa8 {[%emt 0:08:14]} 27. Qxa8 {[%emt 0:01:13]} Nd5 {[%emt 0:01:05]} 28. Rxc6 {[%emt 0:03:29]} Rb2 {[%emt 0:01:39]} 29. f4 {[%emt 0:05:05]} Nxf4 {[%emt 0:02:39]} 30. Qa1 {[%emt 0:13:39]} Nh3+ {[%emt 0:00:32]} 0-1

[Event "Amsterdam Chess Open 2024"]
[Site "Amsterdam"]
[Date "2024.11.01"]
[Round "2.16"]
[White "Pasti, Fabio"]
[Black "Mikko, Rondo"]
[Result "0-1"]
[ECO "B45"]
[WhiteElo "1881"]
[BlackElo "1966"]
[Annotator "RC"]
[PlyCount "100"]
[EventDate "2024.10.31"]
[EventType "swiss"]
[EventCountry "NED"]
[SourceTitle "playchess.com"]
[Source "ChessBase"]
[SourceQuality "1"]
[TimeControl "5400+30"]

1. e4 {[%emt 0:00:02]} c5 {[%emt 0:00:08]} 2. Nf3 {[%emt 0:00:04]} e6 {[%emt 0:00:07]} 3. d4 {[%emt 0:00:37]} cxd4 {[%emt 0:00:08]} 4. Nxd4 {[%emt 0:00:04]} Nf6 {[%emt 0:00:30]} 5. Nc3 {[%emt 0:00:43]} Nc6 {[%emt 0:00:15]} 6. a3 {[%emt 0:02:27]} Be7 {[%emt 0:05:08]} 7. f4 {[%emt 0:01:41]} d5 {[%emt 0:03:52]} 8. Nxc6 {[%emt 0:08:00]} bxc6 {[%emt 0:00:04]} 9. e5 {[%emt 0:00:28]} Nd7 {[%emt 0:00:30]} 10. Bd3 {[%emt 0:01:23]} Nc5 {[%emt 0:02:05]} 11. O-O {[%emt 0:03:28]} Nxd3 {[%emt 0:00:11]} 12. Qxd3 {[%emt 0:00:35]} O-O {[%emt 0:02:15]} 13. Rf3 {[%emt 0:02:08]} Qb6+ {[%emt 0:07:27]} 14. Kh1 {[%emt 0:12:47]} Ba6 {[%emt 0:01:39]} 15. Qd1 {[%emt 0:01:15]} f5 {[%emt 0:06:45]} 16. Rh3 {[%emt 0:09:27]} g6 {[%emt 0:00:40]} 17. b3 {[%emt 0:04:48]} c5 {[%emt 0:00:23]} 18. Bd2 {[%emt 0:04:47]} d4 {[%emt 0:05:56]} 19. Na4 {[%emt 0:01:26]} Qc6 {[%emt 0:02:00]} 20. Be1 {[%emt 0:02:08]} Qe4 {[%emt 0:02:19]} 21. Bh4 {[%emt 0:05:42]} Bb7 {[%emt 0:09:29]} 22. Qd2 {[%emt 0:00:42]} Bxh4 {[%emt 0:06:11]} 23. Nxc5 {[%emt 0:02:28]} Qxg2+ {[%emt 0:07:06]} 24. Qxg2 {[%emt 0:00:08]} Bxg2+ {[%emt 0:00:04]} 25. Kxg2 {[%emt 0:00:06]} Rfc8 {[%emt 0:00:08]} 26. Nxe6 {[%emt 0:04:45]} Rxc2+ {[%emt 0:00:01]} 27. Kh1 {[%emt 0:00:57]} Bf2 {[%emt 0:00:22]} 28. Rd3 {[%emt 0:01:59]} Rc3 {[%emt 0:00:27]} 29. Rxc3 {[%emt 0:02:16]} dxc3 {[%emt 0:00:03]} 30. Rc1 {[%emt 0:01:24]} Rc8 {[%emt 0:00:09]} 31. Kg2 {[%emt 0:01:13]} Bb6 {[%emt 0:02:32]} 32. Kf3 {[%emt 0:00:59]} h6 {[%emt 0:00:08]} 33. b4 {[%emt 0:01:39]} Rc4 {[%emt 0:00:09]} 34. Ke2 {[%emt 0:03:05]} Kf7 {[%emt 0:00:59]} 35. Kd3 {[%emt 0:00:37]} Rc8 {[%emt 0:00:10]} 36. Nc5 {[%emt 0:00:57]} Bxc5 {[%emt 0:00:03]} 37. bxc5 {[%emt 0:00:24]} Rxc5 {[%emt 0:00:16]} 38. h4 {[%emt 0:02:33]} g5 {[%emt 0:04:42]} 39. hxg5 {[%emt 0:00:56]} hxg5 {[%emt 0:00:06]} 40. fxg5 {[%emt 0:01:27]} Rxe5 {[%emt 0:00:16]} 41. Rxc3 {[%emt 0:01:25]} Kg6 {[%emt 0:00:10]} 42. Rc6+ {[%emt 0:01:29]} Kxg5 {[%emt 0:00:07]} 43. Rc7 {[%emt 0:01:55]} a5 {[%emt 0:03:11]} 44. Kd4 {[%emt 0:01:24]} Re4+ {[%emt 0:00:34]} 45. Kd3 {[%emt 0:00:06]} Rg4 {[%emt 0:01:18]} 46. Ke2 {[%emt 0:04:09]} Rg3 {[%emt 0:01:42]} 47. Rg7+ {[%emt 0:00:26]} Kf4 {[%emt 0:00:05]} 48. Rxg3 {[%emt 0:00:43]} Kxg3 {[%emt 0:00:02]} 49. Kf1 {[%emt 0:00:09]} Kf3 {[%emt 0:00:18]} 50. a4 {[%emt 0:00:18]} f4 {[%emt 0:00:13]} 0-1

[Event "Amsterdam Chess Open 2024"]
[Site "Amsterdam"]
[Date "2024.11.01"]
[Round "2.17"]
[White "Timar, Yannick"]
[Black "Verschoor, Scott"]
[Result "1/2-1/2"]
[ECO "B56"]
[WhiteElo "1881"]
[BlackElo "1966"]
[Annotator "RC"]
[PlyCount "64"]
[EventDate "2024.10.31"]
[EventType "swiss"]
[EventCountry "NED"]
[SourceTitle "playchess.com"]
[Source "ChessBase"]
[SourceQuality "1"]
[TimeControl "5400+30"]

1. e4 {[%emt 0:00:03]} c5 {[%emt 0:00:05]} 2. Nf3 {[%emt 0:00:08]} d6 {[%emt 0:00:05]} 3. d4 {[%emt 0:00:03]} cxd4 {[%emt 0:00:04]} 4. Nxd4 {[%emt 0:00:04]} Nf6 {[%emt 0:00:06]} 5. Nc3 {[%emt 0:00:04]} Nc6 {[%emt 0:00:04]} 6. f3 {[%emt 0:01:04]} e5 {[%emt 0:00:06]} 7. Nb3 {[%emt 0:00:51]} Be6 {[%emt 0:00:08]} 8. Be3 {[%emt 0:02:35]} d5 {[%emt 0:01:20]} 9. exd5 {[%emt 0:01:00]} Nxd5 {[%emt 0:00:07]} 10. Nxd5 {[%emt 0:03:03]} Qxd5 {[%emt 0:00:09]} 11. Qxd5 {[%emt 0:17:22]} Bxd5 {[%emt 0:00:08]} 12. Rd1 {[%emt 0:02:18]} O-O-O {[%emt 0:01:00]} 13. c4 {[%emt 0:05:22]} Be6 {[%emt 0:00:14]} 14. Rxd8+ {[%emt 0:00:39]} Kxd8 {[%emt 0:00:09]} 15. Nc5 {[%emt 0:00:41]} Bc8 {[%emt 0:00:15]} 16. Bd3 {[%emt 0:03:49]} f5 {[%emt 0:03:41]} 17. a3 {[%emt 0:04:04]} b6 {[%emt 0:02:07]} 18. Na4 {[%emt 0:03:12]} g6 {[%emt 0:03:43]} 19. Kd2 {[%emt 0:06:03]} Nd4 {[%emt 0:07:41]} 20. b4 {[%emt 0:12:51]} Bd7 {[%emt 0:10:16]} 21. Nc3 {[%emt 0:01:13]} Bc6 {[%emt 0:03:37]} 22. Nd5 {[%emt 0:02:38]} h6 {[%emt 0:11:42]} 23. Kc3 {[%emt 0:03:55]} Ne6 {[%emt 0:02:59]} 24. g4 {[%emt 0:05:33]} Nc7 {[%emt 0:09:17]} 25. Nxc7 {[%emt 0:03:20]} Kxc7 {[%emt 0:00:10]} 26. gxf5 {[%emt 0:00:20]} Bg7 {[%emt 0:10:18]} 27. Be4 {[%emt 0:00:38]} gxf5 {[%emt 0:00:17]} 28. Bxf5 {[%emt 0:02:34]} Bxf3 {[%emt 0:03:27]} 29. Rg1 {[%emt 0:00:53]} Bf6 {[%emt 0:00:37]} 30. Rg6 {[%emt 0:00:32]} Bg5 {[%emt 0:00:22]} 31. Bxg5 {[%emt 0:00:13]} hxg5 {[%emt 0:00:07]} 32. Rxg5 {[%emt 0:01:20]} Rxh2 {[%emt 0:00:34]} 1/2-1/2

[Event "Amsterdam Chess Open 2024"]
[Site "Amsterdam"]
[Date "2024.11.01"]
[Round "2.18"]
[White "Garau, Francesca"]
[Black "Straat, Evert-Jan"]
[Result "1/2-1/2"]
[ECO "C06"]
[WhiteElo "1879"]
[BlackElo "1955"]
[Annotator "RC"]
[PlyCount "90"]
[EventDate "2024.10.31"]
[EventType "swiss"]
[EventCountry "NED"]
[SourceTitle "playchess.com"]
[Source "ChessBase"]
[SourceQuality "1"]
[TimeControl "5400+30"]

1. e4 {[%emt 0:00:06]} e6 {[%emt 0:00:24]} 2. d4 {[%emt 0:00:25]} d5 {[%emt 0:00:10]} 3. Nd2 {[%emt 0:00:14]} Nf6 {[%emt 0:00:36]} 4. e5 {[%emt 0:00:22]} Nfd7 {[%emt 0:00:08]} 5. Ngf3 {[%emt 0:00:26]} c5 {[%emt 0:00:36]} 6. c3 {[%emt 0:00:48]} Nc6 {[%emt 0:00:16]} 7. Bd3 {[%emt 0:00:31]} cxd4 {[%emt 0:00:42]} 8. cxd4 {[%emt 0:00:14]} Be7 {[%emt 0:01:26]} 9. O-O {[%emt 0:01:27]} g5 {[%emt 0:11:24]} 10. Nb3 {[%emt 0:06:00]} h5 {[%emt 0:05:48]} 11. h4 {[%emt 0:04:27]} gxh4 {[%emt 0:11:54]} 12. Kh2 {[%emt 0:02:24]} Qc7 {[%emt 0:11:06]} 13. Bg5 {[%emt 0:20:14]} h3 {[%emt 0:26:04]} 14. Kxh3 {[%emt 0:16:48]} Bxg5 {[%emt 0:09:24]} 15. Nxg5 {[%emt 0:01:56]} f6 {[%emt 0:01:07]} 16. Bg6+ {[%emt 0:03:47]} Ke7 {[%emt 0:00:22]} 17. Nf7 {[%emt 0:03:09]} Rf8 {[%emt 0:01:16]} 18. Qxh5 {[%emt 0:02:21]} Rxf7 {[%emt 0:02:42]} 19. Bxf7 {[%emt 0:00:49]} fxe5 {[%emt 0:00:32]} 20. Bg8 {[%emt 0:04:30]} Kd6 {[%emt 0:06:07]} 21. Rac1 {[%emt 0:15:22]} Qd8 {[%emt 0:02:38]} 22. Qf7 {[%emt 0:07:40]} Nf6 {[%emt 0:01:23]} 23. Bh7 {[%emt 0:02:29]} Nxh7 {[%emt 0:02:18]} 24. dxe5+ {[%emt 0:01:21]} Nxe5 {[%emt 0:01:15]} 25. Qxh7 {[%emt 0:00:17]} Bd7 {[%emt 0:00:16]} 26. Nd4 {[%emt 0:02:01]} Qh8 {[%emt 0:00:43]} 27. Qxh8 {[%emt 0:00:13]} Rxh8+ {[%emt 0:00:02]} 28. Kg3 {[%emt 0:00:03]} Rg8+ {[%emt 0:01:10]} 29. Kh2 {[%emt 0:00:26]} Ng4+ {[%emt 0:00:06]} 30. Kg1 {[%emt 0:00:21]} e5 {[%emt 0:00:18]} 31. Nf3 {[%emt 0:00:35]} Bc6 {[%emt 0:00:51]} 32. Rfe1 {[%emt 0:02:15]} d4 {[%emt 0:00:50]} 33. Nd2 {[%emt 0:00:37]} Ne3 {[%emt 0:01:33]} 34. fxe3 {[%emt 0:00:38]} Rxg2+ {[%emt 0:00:03]} 35. Kf1 {[%emt 0:00:02]} Rxd2 {[%emt 0:00:16]} 36. exd4 {[%emt 0:00:13]} Bb5+ {[%emt 0:00:43]} 37. Kg1 {[%emt 0:00:15]} exd4 {[%emt 0:00:08]} 38. Rcd1 {[%emt 0:01:04]} Rxb2 {[%emt 0:01:01]} 39. Rxd4+ {[%emt 0:00:06]} Kc7 {[%emt 0:00:09]} 40. Rc1+ {[%emt 0:01:09]} Kb6 {[%emt 0:00:11]} 41. a4 {[%emt 0:00:27]} Bc6 {[%emt 0:00:08]} 42. Rcc4 {[%emt 0:00:45]} Ra2 {[%emt 0:01:04]} 43. Rf4 {[%emt 0:00:36]} Ka5 {[%emt 0:00:46]} 44. Rf5+ {[%emt 0:00:53]} Kb6 {[%emt 0:00:13]} 45. Rff4 {[%emt 0:00:14]} Ka5 {[%emt 0:00:50]} 1/2-1/2

[Event "Amsterdam Chess Open 2024"]
[Site "Amsterdam"]
[Date "2024.11.01"]
[Round "2.20"]
[White "Vintonyak, Yuriy"]
[Black "Beijen, Mark"]
[Result "1/2-1/2"]
[ECO "A37"]
[WhiteElo "1872"]
[BlackElo "1945"]
[Annotator "RC"]
[PlyCount "108"]
[EventDate "2024.10.31"]
[EventType "swiss"]
[EventCountry "NED"]
[SourceTitle "playchess.com"]
[Source "ChessBase"]
[SourceQuality "1"]
[TimeControl "5400+30"]

1. c4 {[%emt 0:00:02]} c5 {[%emt 0:02:29]} 2. Nc3 {[%emt 0:00:11]} Nc6 {[%emt 0:00:29]} 3. g3 {[%emt 0:00:14]} g6 {[%emt 0:00:23]} 4. Bg2 {[%emt 0:00:05]} Bg7 {[%emt 0:00:17]} 5. Nf3 {[%emt 0:02:24]} d6 {[%emt 0:01:55]} 6. O-O {[%emt 0:01:29]} e5 {[%emt 0:00:44]} 7. d3 {[%emt 0:00:54]} Nge7 {[%emt 0:00:50]} 8. Rb1 {[%emt 0:05:00]} O-O {[%emt 0:04:47]} 9. a3 {[%emt 0:00:57]} a5 {[%emt 0:00:42]} 10. Bd2 {[%emt 0:01:22]} h6 {[%emt 0:08:29]} 11. Nb5 {[%emt 0:08:25]} Be6 {[%emt 0:06:08]} 12. Qc2 {[%emt 0:01:34]} Qd7 {[%emt 0:03:07]} 13. e3 {[%emt 0:07:37]} Rfc8 {[%emt 0:04:06]} 14. e4 {[%emt 0:09:08]} Nd4 {[%emt 0:03:54]} 15. Nfxd4 {[%emt 0:01:34]} cxd4 {[%emt 0:00:40]} 16. Qc1 {[%emt 0:09:06]} Kh7 {[%emt 0:02:01]} 17. Qe1 {[%emt 0:00:27]} Nc6 {[%emt 0:15:48]} 18. f4 {[%emt 0:02:30]} f5 {[%emt 0:04:20]} 19. exf5 {[%emt 0:08:26]} gxf5 {[%emt 0:00:54]} 20. fxe5 {[%emt 0:06:03]} dxe5 {[%emt 0:02:01]} 21. Qe2 {[%emt 0:02:16]} Rf8 {[%emt 0:04:34]} 22. Rbe1 {[%emt 0:07:00]} Rae8 {[%emt 0:02:23]} 23. Qh5 {[%emt 0:04:02]} Rf6 {[%emt 0:04:52]} 24. g4 {[%emt 0:01:14]} e4 {[%emt 0:05:23]} 25. Bxe4 {[%emt 0:03:43]} Rg6 {[%emt 0:04:03]} 26. Bxf5 {[%emt 0:01:04]} Bxf5 {[%emt 0:01:20]} 27. Qxf5 {[%emt 0:04:49]} Qxf5 {[%emt 0:05:08]} 28. Rxf5 {[%emt 0:00:08]} Rxg4+ {[%emt 0:04:02]} 29. Kf1 {[%emt 0:01:32]} Rxe1+ {[%emt 0:06:39]} 30. Bxe1 {[%emt 0:00:38]} Kg6 {[%emt 0:00:09]} 31. Rd5 {[%emt 0:04:29]} Be5 {[%emt 0:01:55]} 32. h3 {[%emt 0:01:10]} Rg5 {[%emt 0:00:16]} 33. Nd6 {[%emt 0:01:10]} Ne7 {[%emt 0:00:44]} 34. Nxb7 {[%emt 0:04:15]} Nxd5 {[%emt 0:01:02]} 35. cxd5 {[%emt 0:00:08]} Rf5+ {[%emt 0:00:35]} 36. Ke2 {[%emt 0:00:10]} Bf4 {[%emt 0:00:45]} 37. d6 {[%emt 0:00:38]} Rd5 {[%emt 0:00:34]} 38. Nxa5 {[%emt 0:00:43]} Bxd6 {[%emt 0:00:30]} 39. Nc4 {[%emt 0:00:12]} Bb8 {[%emt 0:00:24]} 40. b4 {[%emt 0:01:20]} Rg5 {[%emt 0:00:28]} 41. Kf3 {[%emt 0:00:40]} Rf5+ {[%emt 0:00:34]} 42. Ke2 {[%emt 0:01:00]} Rf7 {[%emt 0:00:34]} 43. Bf2 {[%emt 0:00:45]} Re7+ {[%emt 0:00:08]} 44. Kd2 {[%emt 0:00:09]} Bf4+ {[%emt 0:00:09]} 45. Kd1 {[%emt 0:00:12]} Kf5 {[%emt 0:01:07]} 46. b5 {[%emt 0:00:47]} Be3 {[%emt 0:00:18]} 47. Bxe3 {[%emt 0:00:43]} dxe3 {[%emt 0:00:08]} 48. Ke2 {[%emt 0:00:04]} Kf4 {[%emt 0:00:21]} 49. b6 {[%emt 0:00:14]} Rg7 {[%emt 0:00:16]} 50. Kf1 {[%emt 0:01:41]} Rd7 {[%emt 0:00:34]} 51. Ke2 {[%emt 0:00:16]} Rg7 {[%emt 0:00:17]} 52. Kf1 {[%emt 0:00:09]} Rd7 {[%emt 0:01:24]} 53. Ke2 {[%emt 0:00:07]} Rg7 {[%emt 0:00:06]} 54. Kf1 {[%emt 0:00:58]} Rd7 {[%emt 0:00:16]} 1/2-1/2

[Event "Amsterdam Chess Open 2024"]
[Site "Amsterdam"]
[Date "2024.11.01"]
[Round "2.22"]
[White "Haerden, Mathijs"]
[Black "Dekker, Ichelle"]
[Result "1-0"]
[ECO "A03"]
[WhiteElo "1802"]
[BlackElo "1737"]
[Annotator "NA RC"]
[PlyCount "49"]
[EventDate "2024.10.31"]
[EventType "swiss"]
[EventCountry "NED"]
[SourceTitle "playchess.com"]
[Source "ChessBase"]
[SourceQuality "1"]
[TimeControl "5400+30"]

1. f4 {[%emt 0:00:03]} e6 {[%emt 0:00:41]} 2. Nf3 {[%emt 0:00:12]} d5 {[%emt 0:00:30]} 3. e3 {[%emt 0:00:11]} Nf6 {[%emt 0:00:49]} 4. b3 {[%emt 0:00:08]} Be7 {[%emt 0:01:10]} 5. Bb2 {[%emt 0:00:07]} c5 {[%emt 0:00:31]} 6. Bb5+ {[%emt 0:00:16]} Nc6 {[%emt 0:00:30]} 7. Bxc6+ {[%emt 0:00:13]} bxc6 {[%emt 0:00:10]} 8. Ne5 {[%emt 0:00:09]} Bb7 {[%emt 0:01:13]} 9. O-O {[%emt 0:01:22]} O-O {[%emt 0:00:53]} 10. d3 {[%emt 0:00:14]} Qb6 {[%emt 0:01:08]} 11. Rf3 {[%emt 0:07:45]} Rfd8 {[%emt 0:05:16]} 12. Qe1 {[%emt 0:16:32]} d4 {[%emt 0:08:07]} 13. e4 {[%emt 0:00:47]} a5 {[%emt 0:06:15]} 14. a4 {[%emt 0:00:10]} Nd7 {[%emt 0:03:10]} 15. Nxd7 {[%emt 0:07:43]} Rxd7 {[%emt 0:00:27]} 16. Nd2 {[%emt 0:00:05]} Ba6 {[%emt 0:03:00]} 17. Rh3 {[%emt 0:01:12]} Qc7 {[%emt 0:01:33]} 18. e5 {[%emt 0:03:00]} Re8 {[%emt 0:02:01]} 19. Qe4 {[%emt 0:02:58]} g6 {[%emt 0:02:03]} 20. Rf1 {[%emt 0:05:11]} f6 {[%emt 0:04:45]} 21. exf6 {[%emt 0:25:16]} Bxf6 {[%emt 0:01:32]} 22. f5 {[%emt 0:02:24]} gxf5 {[%emt 0:01:23]} 23. Rxf5 {[%emt 0:00:26]} Bd8 {[%emt 0:05:33]} 24. Rxc5 {[%emt 0:04:30]} Bg5 {[%emt 0:12:45]} 25. Rxg5+ {[%emt 0:00:33]} 1-0

[Event "Amsterdam Chess Open 2024"]
[Site "Amsterdam"]
[Date "2024.11.01"]
[Round "2.23"]
[White "Denz, Markus"]
[Black "Van der Velden, Rens"]
[Result "1/2-1/2"]
[ECO "E68"]
[WhiteElo "1729"]
[BlackElo "1798"]
[Annotator "NA RC"]
[PlyCount "99"]
[EventDate "2024.10.31"]
[EventType "swiss"]
[EventCountry "NED"]
[SourceTitle "playchess.com"]
[Source "ChessBase"]
[SourceQuality "1"]
[TimeControl "5400+30"]

1. d4 {[%emt 0:00:02]} Nf6 {[%emt 0:00:21]} 2. c4 {[%emt 0:00:06]} g6 {[%emt 0:00:23]} 3. g3 {[%emt 0:00:12]} Bg7 {[%emt 0:00:38]} 4. Bg2 {[%emt 0:00:19]} O-O {[%emt 0:02:23]} 5. Nc3 {[%emt 0:00:14]} d6 {[%emt 0:04:55]} 6. Nf3 {[%emt 0:00:13]} Nbd7 {[%emt 0:07:38]} 7. O-O {[%emt 0:00:21]} Re8 {[%emt 0:02:29]} 8. e4 {[%emt 0:00:51]} e5 {[%emt 0:01:44]} 9. h3 {[%emt 0:02:49]} exd4 {[%emt 0:07:38]} 10. Nxd4 {[%emt 0:00:13]} Nc5 {[%emt 0:00:49]} 11. Re1 {[%emt 0:00:28]} Rb8 {[%emt 0:09:44]} 12. Rb1 {[%emt 0:03:43]} Bd7 {[%emt 0:07:41]} 13. b4 {[%emt 0:03:33]} Ne6 {[%emt 0:01:36]} 14. Be3 {[%emt 0:02:54]} Qc8 {[%emt 0:08:35]} 15. Kh2 {[%emt 0:01:16]} Nxd4 {[%emt 0:03:32]} 16. Bxd4 {[%emt 0:00:30]} c5 {[%emt 0:01:07]} 17. bxc5 {[%emt 0:11:32]} dxc5 {[%emt 0:00:16]} 18. Bxf6 {[%emt 0:08:43]} Bxf6 {[%emt 0:00:24]} 19. Nb5 {[%emt 0:02:54]} Bxb5 {[%emt 0:01:29]} 20. Rxb5 {[%emt 0:02:37]} Bd4 {[%emt 0:03:03]} 21. Qf3 {[%emt 0:02:10]} Qe6 {[%emt 0:01:09]} 22. Qb3 {[%emt 0:04:50]} Bxf2 {[%emt 0:03:32]} 23. Rf1 {[%emt 0:00:33]} Bd4 {[%emt 0:03:22]} 24. Rxb7 {[%emt 0:03:49]} Rxb7 {[%emt 0:04:32]} 25. Qxb7 {[%emt 0:00:05]} Re7 {[%emt 0:05:28]} 26. Qd5 {[%emt 0:02:27]} Qxd5 {[%emt 0:02:09]} 27. cxd5 {[%emt 0:02:57]} Rc7 {[%emt 0:02:24]} 28. Rd1 {[%emt 0:02:17]} Be5 {[%emt 0:00:58]} 29. d6 {[%emt 0:03:32]} Rd7 {[%emt 0:01:27]} 30. Rd5 {[%emt 0:00:16]} Bd4 {[%emt 0:03:04]} 31. Bf1 {[%emt 0:00:51]} f6 {[%emt 0:01:41]} 32. Bb5 {[%emt 0:01:35]} Rd8 {[%emt 0:01:11]} 33. a4 {[%emt 0:01:25]} a5 {[%emt 0:00:47]} 34. Kg2 {[%emt 0:00:53]} h6 {[%emt 0:01:58]} 35. Kf3 {[%emt 0:00:33]} Kf8 {[%emt 0:02:21]} 36. Ke2 {[%emt 0:03:13]} Be5 {[%emt 0:01:00]} 37. d7 {[%emt 0:01:33]} Bxg3 {[%emt 0:01:24]} 38. Rxc5 {[%emt 0:00:29]} Bd6 {[%emt 0:00:49]} 39. Rd5 {[%emt 0:01:48]} Ke7 {[%emt 0:00:28]} 40. Bc6 {[%emt 0:01:55]} Bb4 {[%emt 0:00:33]} 41. Kf3 {[%emt 0:01:18]} Be1 {[%emt 0:01:09]} 42. e5 {[%emt 0:04:15]} Ke6 {[%emt 0:02:37]} 43. exf6 {[%emt 0:00:22]} Kxf6 {[%emt 0:00:23]} 44. Rd6+ {[%emt 0:01:17]} Kg7 {[%emt 0:01:05]} 45. Re6 {[%emt 0:00:17]} Rf8+ {[%emt 0:00:23]} 46. Kg2 {[%emt 0:02:21]} Bh4 {[%emt 0:00:25]} 47. Re5 {[%emt 0:05:14]} Rf2+ {[%emt 0:00:27]} 48. Kg1 {[%emt 0:00:13]} Rf5 {[%emt 0:00:14]} 49. Re8 {[%emt 0:01:35]} Rf8 {[%emt 0:00:18]} 50. Kg2 {[%emt 0:01:17]} 1/2-1/2

[Event "Amsterdam Chess Open 2024"]
[Site "Amsterdam"]
[Date "2024.11.01"]
[Round "2.24"]
[White "Stiehler, Oskar"]
[Black "Richard Speckamp"]
[Result "1-0"]
[ECO "B22"]
[WhiteElo "1784"]
[BlackElo "1737"]
[Annotator "NA RC"]
[PlyCount "28"]
[EventDate "2024.10.31"]
[EventType "swiss"]
[EventCountry "NED"]
[SourceTitle "playchess.com"]
[Source "ChessBase"]
[SourceQuality "1"]
[TimeControl "5400+30"]

1. e4 {[%emt 0:00:05]} c5 {[%emt 0:00:07]} 2. c3 {[%emt 0:00:22]} Nc6 {[%emt 0:00:48]} 3. d4 {[%emt 0:00:18]} cxd4 {[%emt 0:00:52]} 4. cxd4 {[%emt 0:00:11]} d5 {[%emt 0:00:07]} 5. e5 {[%emt 0:01:30]} Bf5 {[%emt 0:00:25]} 6. Bd3 {[%emt 0:02:22]} Bxd3 {[%emt 0:02:15]} 7. Qxd3 {[%emt 0:00:11]} e6 {[%emt 0:00:17]} 8. a3 {[%emt 0:01:05]} Qb6 {[%emt 0:00:42]} 9. Nf3 {[%emt 0:01:42]} Nge7 {[%emt 0:00:40]} 10. b4 {[%emt 0:02:06]} Rc8 {[%emt 0:00:50]} 11. O-O {[%emt 0:01:00]} Nf5 {[%emt 0:02:21]} 12. Be3 {[%emt 0:03:08]} Be7 {[%emt 0:00:39]} 13. Nbd2 {[%emt 0:03:40]} O-O {[%emt 0:01:35]} 14. Nb3 {[%emt 0:01:36]} Rc7 {[%emt 0:02:01]} 1-0

[Event "Amsterdam Chess Open 2024"]
[Site "Amsterdam"]
[Date "2024.11.01"]
[Round "2.26"]
[White "Marnix Reemst"]
[Black "Patil, Neev"]
[Result "1-0"]
[ECO "E91"]
[WhiteElo "1700"]
[BlackElo "1543"]
[Annotator "NA RC"]
[PlyCount "39"]
[EventDate "2024.10.31"]
[EventType "swiss"]
[EventCountry "NED"]
[SourceTitle "playchess.com"]
[Source "ChessBase"]
[SourceQuality "1"]
[TimeControl "5400+30"]

1. d4 {[%emt 0:00:04]} Nf6 {[%emt 0:00:32]} 2. c4 {[%emt 0:00:13]} g6 {[%emt 0:00:05]} 3. Nc3 {[%emt 0:00:11]} Bg7 {[%emt 0:00:16]} 4. e4 {[%emt 0:00:12]} d6 {[%emt 0:00:10]} 5. Nf3 {[%emt 0:00:28]} O-O {[%emt 0:00:15]} 6. Be2 {[%emt 0:00:52]} Nbd7 {[%emt 0:00:40]} 7. O-O {[%emt 0:01:04]} h6 {[%emt 0:01:32]} 8. Qc2 {[%emt 0:03:43]} e5 {[%emt 0:00:42]} 9. dxe5 {[%emt 0:01:52]} dxe5 {[%emt 0:03:39]} 10. Rd1 {[%emt 0:03:17]} Qe7 {[%emt 0:03:50]} 11. b3 {[%emt 0:06:49]} b6 {[%emt 0:01:15]} 12. Bb2 {[%emt 0:04:46]} Bb7 {[%emt 0:04:42]} 13. Nd5 {[%emt 0:07:33]} Nxd5 {[%emt 0:00:36]} 14. cxd5 {[%emt 0:00:41]} f6 {[%emt 0:02:01]} 15. Qxc7 {[%emt 0:03:53]} Rab8 {[%emt 0:12:26]} 16. Bb5 {[%emt 0:08:35]} Rfd8 {[%emt 0:05:57]} 17. Rac1 {[%emt 0:10:03]} Bf8 {[%emt 0:03:13]} 18. d6 {[%emt 0:08:23]} Qg7 {[%emt 0:05:25]} 19. b4 {[%emt 0:09:35]} Bxe4 {[%emt 0:02:28]} 20. Qc4+ {[%emt 0:00:34]} 1-0